[Event "Czech Extraliga 2023-24"]
[Site "Czech Republic"]
[Date "2024.01.27"]
[Round "5.1"]
[White "BSS2 Bernadskiy Vitaliy GM"]
[Black "DPP2 Sahidi Samir IM"]
[Result "1-0"]
[ECO "B18"]
[WhiteElo "2524"]
[BlackElo "2476"]
[Annotator "TA"]
[PlyCount "71"]
[EventDate "2023.10.14"]
[EventCountry "CZE"]
[SourceTitle "playchess.com"]
[Source "ChessBase"]
[SourceQuality "1"]
[TimeControl "40/5400+30:1800+30"]

{[%evp 19,71,-9,-13,-10,-10,-37,-32,-35,-17,-28,-14,-29,-23,-26,-27,-24,-15,-28,-19,-19,35,37,31,0,55,50,44,14,61,75,62,77,89,96,313,341,323,281,466,469,591,595,641,579,714,740,1046,997,29994,29995,29995,29996,29996,29997]} 1. e4 {[%emt 0:00:03]} c6 {[%emt 0:00:30]} 2. d4 {[%emt 0:00:49]} d5 {[%emt 0:00:06]} 3. Nc3 {[%emt 0:01:36]} dxe4 {[%emt 0:01:20]} 4. Nxe4 {[%emt 0:00:05]} Bf5 {[%emt 0:01:16]} 5. Ng3 {[%emt 0:00:29]} Bg6 {[%emt 0:00:34]} 6. h4 {[%emt 0:02:01]} h6 {[%emt 0:00:09]} 7. Bc4 {[%emt 0:00:07]} e6 {[%emt 0:04:48]} 8. N1e2 {[%emt 0:00:21]} Nf6 {[%emt 0:04:53]} 9. Nf4 {[%emt 0:00:20]} Bh7 {[%emt 0:00:06]} 10. c3 {[%emt 0:00:15]} Bd6 {[%emt 0:02:19]} 11. Ngh5 {[%emt 0:05:51]} O-O {[%emt 0:09:50]} 12. g4 {[%emt 0:06:20]} Bxf4 {[%emt 0:12:05]} 13. Nxf4 {[%emt 0:19:16] [#] Black is slightly better.} e5 $1 {[%emt 0:01:49]} 14. Ne2 {[%emt 0:09:56]} (14. dxe5 Qxd1+) 14... Nxg4 {[%emt 0:07:49] ...Nd7 is the strong threat.} 15. f3 $1 {[%emt 0:01:24]} Nf6 {[%emt 0:03:20]} 16. dxe5 {[%emt 0:00:23]} Qxd1+ {[%emt 0:01:22]} 17. Kxd1 {[%emt 0:00:03]} Nfd7 {[%emt 0:04:53]} 18. f4 {[%emt 0:01:16]} b5 {[%emt 0:07:25]} 19. Bb3 {[%emt 0:00:28]} Nc5 {[%emt 0:00:06]} (19... Rd8 $1 $11 20. Bd2 Nb6) 20. Nd4 $14 {[%emt 0:00:30][%cal Be2d4,Bd4c2,Bc2d4,Bd4f5,Bf5h6][%mdl 32]} Rd8 {[%emt 0:07:13] Strongly threatening ...Nxb3.} 21. Ke2 {[%emt 0:10:03]} Be4 {[%emt 0:07:40]} ({Black should try} 21... Nxb3 $11 22. Nxb3 a5) 22. Rg1 {[%emt 0:02:48]} Nbd7 {[%emt 0:02:20]} 23. Be3 {[%emt 0:03:35]} (23. Bc2 {simplifies} Bxc2 24. Nxc2 f6 25. Be3) 23... Nb6 {[%emt 0:04:07]} (23... Nxb3 $11 24. axb3 a5) 24. Bc2 {[%emt 0:06:03]} Bxc2 {[%emt 0:04:41]} 25. Nxc2 {[%emt 0:00:11]} Nca4 {[%emt 0:00:09]} 26. Nd4 {[%emt 0:00:21] aiming for Nf5.} Nxb2 $2 {[%emt 0:01:18] A mistake that costs the game.} (26... Kh7 $16 {was necessary.}) 27. Nf5 $1 $18 {[%emt 0:04:56]} ({Weaker is} 27. Nxc6 Rd7 $14) 27... g6 {[%emt 0:00:13]} 28. Nxh6+ {[%emt 0:01:30]} Kg7 $2 {[%emt 0:01:42]} (28... Kh7) 29. f5 {[%emt 0:24:00][%cal Bf4f5,Bf5f6][%mdl 32]} Nd5 {[%emt 0:06:20][%cal Od5e3] ...Nxe3! would now be deadly.} 30. f6+ {[%emt 0:00:00]} Kf8 {[%emt 0:00:24][%cal Od5e3] [#]} 31. e6 $1 {[%emt 0:00:00][%cal Be5e6,Be6f7][%mdl 544]} Nxc3+ {[%emt 0:00:44]} (31... Nxf6 32. Raf1) 32. Kf1 {[%emt 0:00:00][%cal Og1g6] Threatening mate with Rxg6!} Rd5 {[%emt 0:00:57]} 33. exf7 {[%emt 0:00:00]} g5 {[%emt 0:03:48]} 34. Rxg5 {[%emt 0:00:00] White mates.} Rxg5 {[%emt 0:00:38]} 35. hxg5 {[%emt 0:00:00][%cal Re3c5,Bh4g5,Bg5g6][%mdl 32]} Ne4 {[%emt 0:00:07]} 36. g6 {[%emt 0:00:00] Weighted Error Value: White=0.09 (flawless) /Black=0.59.  Loses game:     	---       	Black=1      Mistake:       	---       	Black=4      Inaccurate:     	White=3     	Black=1      OK:         	White=7     	Black=10     Best:        	White=4     	---        Strong:       	White=2     	---} 1-0

[Event "Czech Extraliga 2023-24"]
[Site "Czech Republic"]
[Date "2024.01.27"]
[Round "5.2"]
[White "Gonda, Laszlo"]
[Black "Dragnev, Valentin"]
[Result "1/2-1/2"]
[ECO "A38"]
[WhiteElo "2491"]
[BlackElo "2582"]
[Annotator "TA"]
[PlyCount "133"]
[EventDate "2023.10.14"]
[EventCountry "CZE"]
[SourceTitle "playchess.com"]
[Source "ChessBase"]
[SourceQuality "1"]
[TimeControl "40/5400+30:1800+30"]

{[%evp 49,133,181,180,160,163,157,179,151,193,144,148,139,229,184,191,184,194,146,339,341,301,175,234,172,146,137,215,90,112,33,33,33,33,33,33,33,39,39,45,33,33,33,70,64,64,64,64,64,64,64,341,64,64,64,64,64,64,64,64,0,0,0,0,0,8,0,0,0,8,0,0,0,0,0,0,0,0,0,0,0,0,0,0,0,0,0]} 1. Nf3 {[%emt 0:00:03]} Nf6 {[%emt 0:01:02]} 2. g3 {[%emt 0:00:47]} c5 {[%emt 0:00:30]} 3. c4 {[%emt 0:07:24]} g6 {[%emt 0:03:50]} 4. b3 {[%emt 0:02:40]} Bg7 {[%emt 0:00:39]} 5. Bb2 {[%emt 0:00:02]} d6 {[%emt 0:00:52]} 6. Bg2 {[%emt 0:01:28]} e5 {[%emt 0:01:09]} 7. Nc3 {[%emt 0:01:16]} O-O {[%emt 0:00:29]} 8. O-O {[%emt 0:00:48]} Nc6 {[%emt 0:03:15]} 9. d3 {[%emt 0:01:47]} h6 {[%emt 0:13:08]} 10. Nd2 {[%emt 0:08:49]} Be6 {[%emt 0:01:51]} 11. a3 {[%emt 0:02:41]} d5 {[%emt 0:04:39]} 12. cxd5 {[%emt 0:01:13]} Nxd5 {[%emt 0:00:10]} 13. Rc1 {[%emt 0:01:23]} Nxc3 {[%emt 0:19:36]} 14. Rxc3 {[%emt 0:02:59]} Qe7 {[%emt 0:02:57]} 15. Bxc6 {[%emt 0:47:31]} bxc6 {[%emt 0:00:10]} 16. Qc2 {[%emt 0:00:04]} Rab8 {[%emt 0:07:27]} 17. Rxc5 {[%emt 0:03:14]} Bxb3 {[%emt 0:01:08]} 18. Nxb3 {[%emt 0:00:25]} Rxb3 {[%emt 0:00:06]} 19. Rxc6 {[%emt 0:03:46]} Rfb8 {[%emt 0:06:39]} 20. Bc1 {[%emt 0:00:29]} R8b7 {[%emt 0:11:20]} 21. Ra6 {[%emt 0:05:04]} Rb8 {[%emt 0:06:00]} 22. Qc4 {[%emt 0:01:01]} Kh7 {[%emt 0:01:14]} 23. Be3 {[%emt 0:00:34]} R3b7 {[%emt 0:02:03]} 24. Rc1 {[%emt 0:00:31]} h5 {[%emt 0:05:41]} 25. Qc5 {[%emt 0:03:52]} Bh6 {[%emt 0:01:17]} 26. Bxh6 {[%emt 0:02:34]} (26. Rxa7 $2 {too greedy.} Qxc5 27. Bxc5 Bxc1 $19) 26... Kxh6 {[%emt 0:00:11]} 27. Qe3+ {[%emt 0:00:17]} Kh7 {[%emt 0:00:48]} 28. Qe4 {[%emt 0:01:11]} Rb3 {[%emt 0:01:28]} 29. Rcc6 {[%emt 0:00:31]} (29. d4 $18) 29... R8b6 {[%emt 0:02:49]} 30. Raxb6 {[%emt 0:00:32]} axb6 {[%emt 0:00:55]} (30... Rxb6 $16 31. Rc8 Rb2) 31. Qc4 {[%emt 0:00:06]} Rb1+ {[%emt 0:01:05]} 32. Kg2 {[%emt 0:00:03]} Kg7 {[%emt 0:01:12]} 33. Rc7 {[%emt 0:00:48]} (33. Qc3 $18) 33... Qe8 $2 {[%emt 0:00:08]} (33... Qf6 $16 {was worth a try.} 34. Rc6 Qf5) 34. Qd5 $18 {[%emt 0:00:46]} Rb2 {[%emt 0:01:03]} 35. Qe4 {[%emt 0:00:46]} (35. e4 $142) 35... Ra2 {[%emt 0:00:32]} (35... Qe6 {keeps fighting.} 36. a4 Qf6) 36. d4 {[%emt 0:00:29]} Rxa3 {[%emt 0:00:25]} 37. dxe5 {[%emt 0:00:10]} ({Resist} 37. Qxe5+ $6 Qxe5 38. dxe5 Kf8 $14) 37... Ra4 {[%emt 0:00:25] [#]} (37... Qe6 $16 {might work better.}) 38. Qe3 {[%emt 0:01:26]} (38. Qb7 $1 $18 {and the rest is easy. Strongly threatening Re7.} Qe6 39. Re7) 38... Qe6 $16 {[%emt 0:00:24]} 39. Qf3 {[%emt 0:00:00]} (39. Qg5 $16) 39... h4 $14 {[%emt 0:00:44]} 40. Qf6+ {[%emt 0:00:20]} Qxf6 {[%emt 0:00:01]} 41. exf6+ {[%emt 0:30:04]} Kxf6 {[%emt 0:30:08]} 42. Rc6+ {[%emt 0:00:01]} Ke7 {[%emt 0:00:59]} 43. Rxb6 {[%emt 0:00:05]} hxg3 {[%emt 0:00:21]} 44. hxg3 {[%emt 0:00:36]} g5 {[%emt 0:00:00]} 45. Kf3 {[%emt 0:00:00]} f6 {[%emt 0:00:00]} 46. e4 {[%emt 0:00:00]} Kf7 {[%emt 0:00:00]} 47. Rd6 {[%emt 0:00:00]} Ke7 {[%emt 0:00:00]} 48. Rd3 {[%emt 0:00:00]} Ke6 {[%emt 0:00:00]} 49. Rb3 {[%emt 0:00:00]} Ke5 $2 {[%emt 0:00:00][%mdl 8192] [#]} ({Black should try} 49... Ra2 $14) 50. Rb5+ $2 {[%emt 0:00:00]} ({White must play} 50. Kg4 $1 $18 {Threatens to win with Kh5.} Ra2 51. f3) 50... Ke6 $14 {[%emt 0:00:00]} 51. Rf5 {[%emt 0:00:00]} Rb4 {[%emt 0:00:00]} 52. Ra5 {[%emt 0:00:00]} Rc4 {[%emt 0:00:00]} 53. Ke3 {[%emt 0:00:00]} Rc3+ {[%emt 0:00:00]} 54. Kd4 {[%emt 0:00:00]} ({Better is} 54. Kd2 $1 $14 Rb3 55. g4) 54... Rf3 $11 {[%emt 0:00:00]} 55. Ra6+ {[%emt 0:00:00]} Ke7 {[%emt 0:00:00]} 56. Ra2 {[%emt 0:00:00]} Kd6 {[%emt 0:00:00]} 57. Rb2 {[%emt 0:00:00]} Ke6 {[%emt 0:00:00]} 58. Ra2 {[%emt 0:00:00]} Kd6 {[%emt 0:00:00]} 59. Rc2 {[%emt 0:00:00]} Ke6 {[%emt 0:00:00]} 60. Rd2 {[%emt 0:00:00]} g4 {[%emt 0:00:00]} 61. Ra2 {[%emt 0:00:07]} Kd6 {[%emt 0:00:00]} 62. Ra8 {[%emt 0:04:19]} Rxf2 {[%emt 0:00:00]} 63. Rg8 {[%emt 0:00:06]} Rf3 {[%emt 0:00:00]} 64. Rxg4 {[%emt 0:00:13]} Ke6 {[%emt 0:00:33]} 65. Rg7 {[%emt 0:00:25]} Ra3 {[%emt 0:00:12]} 66. g4 {[%emt 0:00:23]} Rg3 {[%emt 0:00:08]} 67. e5 {[%emt 0:01:40]} 1/2-1/2

[Event "Czech Extraliga 2023-24"]
[Site "Czech Republic"]
[Date "2024.01.28"]
[Round "6.1"]
[White "NOV2 Wojtaszek Radoslaw GM"]
[Black "BSS2 Bernadskiy Vitaliy GM"]
[Result "1/2-1/2"]
[ECO "E15"]
[WhiteElo "2668"]
[BlackElo "2524"]
[Annotator "TA"]
[PlyCount "67"]
[EventDate "2023.10.14"]
[EventCountry "CZE"]
[SourceTitle "playchess.com"]
[Source "ChessBase"]
[SourceQuality "1"]
[TimeControl "40/5400+30:1800+30"]

{[%evp 9,67,14,18,21,28,17,22,34,33,27,16,21,27,24,48,27,32,27,27,10,14,8,3,0,0,0,0,0,16,8,31,22,36,35,41,27,31,0,36,33,34,37,41,38,34,19,21,21,45,14,41,13,14,14,16,0,0,0,0,0]} 1. d4 {[%emt 0:00:03]} Nf6 {[%emt 0:00:06]} 2. c4 {[%emt 0:00:03]} e6 {[%emt 0:00:20]} 3. Nf3 {[%emt 0:00:06]} b6 {[%emt 0:01:19]} 4. g3 {[%emt 0:00:15]} Bb4+ {[%emt 0:00:07]} 5. Bd2 {[%emt 0:00:06]} Bxd2+ {[%emt 0:00:23]} 6. Qxd2 {[%emt 0:00:07]} c6 {[%emt 0:00:18]} 7. Bg2 {[%emt 0:01:40]} d5 {[%emt 0:00:05]} 8. O-O {[%emt 0:00:45]} O-O {[%emt 0:01:11]} 9. b3 {[%emt 0:09:24]} Bb7 {[%emt 0:03:04]} 10. Nc3 {[%emt 0:00:21]} Nbd7 {[%emt 0:01:40][%cal Bb8d7,Bd7f8,Bf8g6][%mdl 32]} 11. Rfd1 {[%emt 0:00:10]} Re8 {[%emt 0:01:58]} 12. Rac1 {[%emt 0:02:35]} Qe7 {[%emt 0:01:40]} 13. cxd5 {[%emt 0:05:45]} exd5 {[%emt 0:02:34]} 14. Qf4 {[%emt 0:02:43]} Nf8 {[%emt 0:04:04]} 15. Rc2 {[%emt 0:06:34]} Ng6 {[%emt 0:02:11]} 16. Qc1 {[%emt 0:00:32]} Bc8 {[%emt 0:00:11]} 17. Qb2 {[%emt 0:11:24]} Bf5 {[%emt 0:03:49]} 18. Rcc1 {[%emt 0:00:03]} Rad8 {[%emt 0:00:50]} 19. e3 {[%emt 0:03:37]} Rd6 {[%emt 0:13:53]} 20. b4 {[%emt 0:01:22]} b5 {[%emt 0:06:46]} 21. a4 {[%emt 0:01:47]} a6 {[%emt 0:01:58]} 22. axb5 {[%emt 0:00:24]} axb5 {[%emt 0:00:05]} 23. Ne2 {[%emt 0:03:35][%cal Of3e5]} Ne4 {[%emt 0:01:25][%cal Oe4f2] [#]} 24. Ne5 $1 {[%emt 0:04:49]} Nxe5 {[%emt 0:05:10]} 25. dxe5 {[%emt 0:00:04]} Qxe5 {[%emt 0:00:34]} 26. Qxe5 {[%emt 0:03:55]} Rxe5 {[%emt 0:00:26]} 27. Nd4 {[%emt 0:06:39][%cal Of2f4] aiming for f4!} Bd7 {[%emt 0:00:20]} 28. Rc2 {[%emt 0:00:05][%mdl 1024] White has compensation.} Re8 {[%emt 0:05:21]} 29. Ra1 {[%emt 0:01:55]} Rc8 {[%emt 0:02:02]} 30. Ra6 {[%emt 0:06:59]} (30. f3 $5 Nf6 $8 31. g4 $11) 30... Kf8 {[%emt 0:01:53] The position is equal.} 31. f3 {[%emt 0:01:12]} Nf6 {[%emt 0:00:10]} 32. Kf2 {[%emt 0:03:39]} (32. Ra7 $5) 32... Ne8 {[%emt 0:00:44]} 33. Ra7 {[%emt 0:04:17][%cal Oa7d7]} g6 {[%emt 0:00:32]} 34. Bf1 {[%emt 0:00:27] Weighted Error Value: White=0.08 (flawless) /Black=0.08 (flawless) .  Inaccurate:     	White=3     	Black=2      OK:         	White=8     	Black=11     Best:        	---       	Black=1} 1/2-1/2

[Event "Czech Extraliga 2023-24"]
[Site "Czech Republic"]
[Date "2024.01.28"]
[Round "6.1"]
[White "LYS2 Nabaty Tamir GM"]
[Black "UNI1 Haring Filip IM"]
[Result "1-0"]
[ECO "E14"]
[WhiteElo "2632"]
[BlackElo "2441"]
[Annotator "TA"]
[PlyCount "99"]
[EventDate "2023.10.14"]
[EventCountry "CZE"]
[SourceTitle "playchess.com"]
[Source "ChessBase"]
[SourceQuality "1"]
[TimeControl "40/5400+30:1800+30"]

{[%evp 19,99,17,13,16,25,22,38,24,29,21,36,29,35,15,29,15,29,18,51,50,46,45,75,76,86,77,72,78,97,94,99,96,93,87,108,93,90,22,31,16,35,18,31,11,11,12,80,22,263,263,289,232,270,259,242,238,210,198,195,194,517,493,745,718,681,691,610,364,717,665,564,496,773,790,1134,1060,1519,1600,2033,1912,952,1137]} 1. d4 {[%emt 0:00:04]} Nf6 {[%emt 0:00:07]} 2. c4 {[%emt 0:00:17]} e6 {[%emt 0:00:18]} 3. Nf3 {[%emt 0:00:27]} Bb4+ {[%emt 0:01:32]} 4. Nbd2 {[%emt 0:00:27]} b6 {[%emt 0:01:09]} 5. a3 {[%emt 0:01:16]} Bxd2+ {[%emt 0:00:09]} 6. Qxd2 {[%emt 0:00:09]} Bb7 {[%emt 0:00:17]} 7. e3 {[%emt 0:00:34]} O-O {[%emt 0:00:29]} 8. Be2 {[%emt 0:01:02]} d5 {[%emt 0:01:23] E14: Queen's Indian: Classical Variation (4 e3).} 9. O-O {[%emt 0:00:39]} dxc4 {[%emt 0:00:40] 9...Nbd7 is not played anymore.} 10. Bxc4 {[%emt 0:00:34]} Nbd7 {[%emt 0:00:31]} 11. b4 {[%emt 0:01:17]} a5 {[%emt 0:02:27]} 12. b5 {[%emt 0:08:36]} c5 {[%emt 0:08:11]} 13. bxc6 {[%emt 0:03:53]} Bxc6 {[%emt 0:03:05]} 14. Qe2 {[%emt 0:01:05]} Qc7 {[%emt 0:06:11]} 15. Bb2 {[%emt 0:07:08]} Qb7 {[%emt 0:08:32]} 16. a4 {[%emt 0:09:05]} Rfc8 {[%emt 0:01:44]} 17. Rfc1 {[%emt 0:02:08]} Bd5 {[%emt 0:15:25]} 18. Bb5 {[%emt 0:08:18]} Bc6 $146 {[%emt 0:08:38]} ({Predecessor:} 18... Rxc1+ 19. Rxc1 Rc8 20. Rxc8+ Qxc8 21. Ne1 Ne4 22. Ba3 Qc3 23. Bb2 Qc8 24. Ba3 Qc3 {½-½ Mareco,S (2657)-Samant,A (2430) Abu Dhabi Masters 28th 2022 (8)}) 19. Nd2 {[%emt 0:00:25]} Bxb5 {[%emt 0:01:48]} 20. Qxb5 {[%emt 0:01:22]} Rxc1+ {[%emt 0:03:34]} 21. Rxc1 {[%emt 0:00:12]} Rc8 {[%emt 0:00:39]} 22. Rxc8+ {[%emt 0:05:21]} Qxc8 {[%emt 0:00:11]} 23. Nc4 {[%emt 0:00:30]} h6 {[%emt 0:05:16] [#]} 24. f3 $1 {[%emt 0:02:24]} (24. Nxb6 Nxb6 25. Qxb6 Qc2 $17) 24... Nd5 {[%emt 0:03:04]} 25. e4 {[%emt 0:01:16]} Nb4 {[%emt 0:02:15]} 26. Bc3 {[%emt 0:01:40]} (26. Nxb6 $2 Nxb6 27. Qxa5 (27. Qxb6 $2 Qc2 $19) 27... Nd3 28. Qxb6 Qc2 $19) 26... Nd3 {[%emt 0:10:47]} 27. Bd2 {[%emt 0:09:27]} (27. Nxb6 $2 Qxc3 28. h3 Qxd4+ 29. Kh1 Nxb6 $19) 27... Qc7 {[%emt 0:03:49]} 28. e5 {[%emt 0:09:19]} (28. Qb3 $16 Nf4 29. Be3) 28... f6 $11 {[%emt 0:06:05]} 29. f4 {[%emt 0:04:57]} fxe5 {[%emt 0:03:29]} 30. fxe5 {[%emt 0:00:12]} Nf8 $1 {[%emt 0:02:05]} 31. h3 {[%emt 0:03:11]} (31. Qxb6 $2 Qxc4 32. h3 Qxa4 $19) (31. Nxb6 $2 Qc2 32. Qxa5 Qb1+ $19) (31. Qb3 {simplifies} Nb4 32. Bxb4 axb4 33. Qxb4 Qc6 34. Ne3) 31... Qf7 {[%emt 0:00:58]} 32. Be3 {[%emt 0:02:04]} Qh5 {[%emt 0:00:06]} (32... Qg6 $1 $11 {keeps the balance.}) 33. Qb1 {[%emt 0:02:54]} ({Reject} 33. Nxb6 Qe2 34. Nc4 Ne1 $11) ({White should play} 33. Qxb6 $16 Qe2 34. Qxa5) 33... Qe2 $2 {[%emt 0:01:06]} (33... Qg6 $11) 34. Qf1 $1 $18 {[%emt 0:00:57]} (34. Qxb6 Ne1 35. Bf2 (35. Nxa5 $2 Qxg2#) 35... Nxg2 36. Kxg2 Qxc4 37. Qxa5 Ng6 $11) 34... Qxf1+ {[%emt 0:00:57]} 35. Kxf1 {[%emt 0:00:02]} Nd7 {[%emt 0:00:28] [#]} 36. Bd2 $1 {[%emt 0:02:32]} Kf7 {[%emt 0:00:26]} 37. Ke2 {[%emt 0:00:15]} Nb4 {[%emt 0:00:04]} 38. Bxb4 {[%emt 0:00:04]} axb4 {[%emt 0:00:02]} 39. Kd3 {[%emt 0:01:05]} Kg6 $2 {[%emt 0:00:48]} (39... Ke7 {is a better chance.} 40. Nb2 Nb8) 40. Ne3 {[%emt 0:02:10]} Kg5 {[%emt 0:00:36]} (40... b3 $142 41. Kc3 h5) 41. g3 $18 {[%emt 0:31:29]} Nb8 {[%emt 0:30:58]} 42. Kc4 {[%emt 0:00:46]} Nc6 {[%emt 0:00:00]} 43. Nc2 {[%emt 0:00:00]} Kf5 $2 {[%emt 0:00:00]} (43... b3 44. Kxb3 Na7) 44. Nxb4 $18 {[%emt 0:00:00]} Na7 {[%emt 0:00:00]} 45. Kd3 {[%emt 0:00:00]} h5 {[%emt 0:00:00]} (45... Kg6 $142 46. Ke4 h5) 46. Ke3 $18 {[%emt 0:00:00]} g5 {[%emt 0:00:00]} 47. Kf3 {[%emt 0:00:00]} g4+ {[%emt 0:00:00]} 48. hxg4+ {[%emt 0:00:00]} hxg4+ {[%emt 0:00:00]} 49. Ke3 {[%emt 0:00:00]} Nc8 {[%emt 0:00:00]} 50. Nc6 {[%emt 0:00:00]} 1-0

[Event "Czech Extraliga 2023-24"]
[Site "Czech Republic"]
[Date "2024.01.28"]
[Round "6.1"]
[White "TUR1 Rodshtein Maxim GM"]
[Black "LIN1 Piorun Kacper GM"]
[Result "1-0"]
[ECO "E48"]
[WhiteElo "2584"]
[BlackElo "2593"]
[Annotator "TA"]
[PlyCount "103"]
[EventDate "2023.10.14"]
[EventCountry "CZE"]
[SourceTitle "playchess.com"]
[Source "ChessBase"]
[SourceQuality "1"]
[TimeControl "40/5400+30:1800+30"]

{[%evp 11,103,0,0,0,0,0,0,0,1,0,0,0,0,0,8,0,0,6,20,0,0,0,0,0,0,2,23,0,0,0,0,-9,15,16,0,0,25,0,44,35,41,43,45,37,114,110,112,112,150,135,139,124,121,120,114,112,122,84,97,91,212,168,169,172,270,103,115,115,115,115,226,225,223,171,221,227,237,237,230,231,242,113,583,572,809,480,779,757,730,718,1643,822,1939,1550]} 1. d4 {[%emt 0:00:08]} Nf6 {[%emt 0:00:11]} 2. c4 {[%emt 0:00:12]} e6 {[%emt 0:00:04]} 3. Nc3 {[%emt 0:00:46]} Bb4 {[%emt 0:00:28]} 4. e3 {[%emt 0:00:25]} O-O {[%emt 0:01:37]} 5. Bd3 {[%emt 0:00:31]} d5 {[%emt 0:01:06]} 6. cxd5 {[%emt 0:02:17]} exd5 {[%emt 0:00:09]} 7. a3 {[%emt 0:00:29]} Bd6 {[%emt 0:00:07]} 8. Qc2 {[%emt 0:00:18]} b6 {[%emt 0:07:19]} 9. Nb5 {[%emt 0:13:20] The position is equal.} c5 {[%emt 0:07:10]} 10. b3 {[%emt 0:07:19]} Be7 {[%emt 0:05:20]} 11. Nf3 {[%emt 0:11:17]} Bb7 {[%emt 0:06:33]} 12. O-O {[%emt 0:02:10]} Nbd7 {[%emt 0:00:55]} 13. Bb2 {[%emt 0:01:27]} a6 {[%emt 0:10:29]} 14. Nc3 {[%emt 0:00:43]} Bd6 {[%emt 0:00:26]} 15. Rfd1 {[%emt 0:01:44]} Qe7 {[%emt 0:04:44]} 16. Bf5 {[%emt 0:05:59]} Rad8 {[%emt 0:02:23]} 17. a4 {[%emt 0:23:58]} Rfe8 {[%emt 0:08:10]} 18. Rac1 {[%emt 0:01:35]} Nf8 {[%emt 0:06:57]} 19. g3 {[%emt 0:10:04]} Ne6 {[%emt 0:06:00]} 20. Ba3 {[%emt 0:06:02]} Rc8 {[%emt 0:08:09]} 21. Qb1 {[%emt 0:00:21]} Rc7 {[%emt 0:01:33]} 22. Bh3 {[%emt 0:02:18]} Rec8 {[%emt 0:03:18]} 23. Bb2 {[%emt 0:00:33]} Re8 {[%emt 0:06:44]} 24. Bg2 {[%emt 0:01:24]} cxd4 {[%emt 0:03:25]} 25. Nxd4 {[%emt 0:00:02]} Nxd4 {[%emt 0:00:06]} 26. Rxd4 {[%emt 0:00:18][%cal Rc3d5]} Bc5 {[%emt 0:00:31]} 27. Rd3 {[%emt 0:00:46][%cal Rc3d5,Bd4d3,Bd3d5,Bd5b5][%mdl 32]} (27. Nxd5 Nxd5 28. Rxd5 Bxd5 29. Bxd5 Qg5 $11) 27... Ng4 {[%emt 0:06:32]} ({Better is} 27... Rd7 $14) 28. b4 $1 $16 {[%emt 0:05:10]} (28. Nxd5 $2 Bxd5 29. Bxd5 Nxf2 30. Rxc5 (30. Kxf2 $2 Bxe3+ 31. Kg2 Bxc1 $19) 30... Qxc5 (30... Nxd3 $2 31. Rxc7 Qxc7 32. Qxd3 $18) 31. Kxf2 Qc2+ 32. Qxc2 Rxc2+ 33. Kf3 Rxb2 $19) (28. Bxd5 Nxf2 29. Kxf2 Bxe3+ 30. Kg2 Bxc1 31. Qxc1 Rd8 $17) 28... Bxb4 {[%emt 0:03:01]} 29. Nxd5 {[%emt 0:00:08]} ({And not} 29. Bxd5 Bxc3 30. Rcxc3 (30. Bxc3 $2 {is the wrong capture.} Nxf2 31. Kxf2 Bxd5 $19) 30... Rxc3 31. Bxc3 Nxf2 32. Kxf2 Bxd5 $17) 29... Bxd5 {[%emt 0:00:23]} 30. Rxc7 {[%emt 0:00:25]} ({Don't do} 30. Rxd5 Bc5 31. Re1 Rd7 32. Rxd7 Qxd7 $16) 30... Qxc7 {[%emt 0:00:08]} 31. Rxd5 {[%emt 0:00:15]} Be7 {[%emt 0:01:01] Prevents Rg5.} 32. Qd3 {[%emt 0:03:30]} Nf6 {[%emt 0:00:46] Prevents Rd7} 33. Bxf6 {[%emt 0:00:17]} Bxf6 {[%emt 0:00:21]} 34. Qxa6 {[%emt 0:00:12]} g6 {[%emt 0:00:44]} 35. Rb5 {[%emt 0:01:05][%cal Oa4a5]} Qc1+ {[%emt 0:00:38]} (35... Re6 $16) 36. Bf1 $18 {[%emt 0:00:04]} Bd8 {[%emt 0:00:03]} 37. Rd5 $1 {[%emt 0:00:23]} Bc7 {[%emt 0:00:39]} (37... Qc6 $142 38. Qb5 Qxb5 39. Bxb5 Rf8) 38. Qd3 $2 {[%emt 0:00:23]} (38. Qb5 $18 Ra8 39. Rd7) 38... Qc6 {[%emt 0:00:24]} 39. Qd4 {[%emt 0:00:31]} Re6 {[%emt 0:00:46]} 40. Bb5 {[%emt 0:00:27]} Qc2 {[%emt 0:00:29] [#]} (40... Qc1+ $16 {keeps fighting.} 41. Kg2 Qa3) 41. Rd7 $1 {[%emt 0:05:49]} Be5 {[%emt 0:00:04] Against Bc4} 42. Qc4 {[%emt 0:00:34]} Bc3 {[%emt 0:00:34]} (42... Qxc4 $142 43. Bxc4 Rc6) 43. Rd8+ {[%emt 0:12:17]} Kg7 {[%emt 0:00:01] [#]} 44. Qc8 $1 {[%emt 0:00:15]} Qb1+ {[%emt 0:03:25]} 45. Bf1 {[%emt 0:00:15]} Qb4 {[%emt 0:00:46]} 46. h4 {[%emt 0:05:02]} (46. Be2 $18 {and White stays clearly on top.}) 46... h5 $2 {[%emt 0:02:52][%mdl 8192]} (46... Be1 $16 {is tougher.}) 47. Rh8 {[%emt 0:04:26] aiming for Qg8+. White is clearly winning.} Re7 {[%emt 0:13:56]} 48. Qf8+ {[%emt 0:03:26]} Kf6 {[%emt 0:00:01]} 49. Qh6 {[%emt 0:00:52] Rc8 would now be deadly.} Be5 {[%emt 0:05:00]} 50. Rd8 {[%emt 0:00:55]} Qg4 {[%emt 0:00:21] Dodges Bh3} 51. Kg2 {[%emt 0:00:46] Black must now prevent f4.} Rc7 {[%emt 0:03:39]} 52. Re8 {[%emt 0:00:23] Weighted Error Value: White=0.13 (very precise) /Black=0.34.  Loses game:     	---       	Black=1      Missed win:     	White=1     	---        Mistake:       	White=1     	Black=5      Inaccurate:     	White=1     	Black=4      OK:         	White=19    	Black=12     Best:        	White=1     	Black=2      Strong:       	White=3     	---} 1-0